bitfinex/quotes_ETHUSD_20220310
["timestamp","ask_amount","ask_price","bid_price","bid_amount"]
[1646912562625,0.04717769,2594.1,2593.9,0.96413]
[1646912562626,0.80633935,2594.0,2593.9,0.96413]
[1646912562828,0.80962155,2594.0,2593.9,2.30229161]
[1646912563027,0.0032822,2594.0,2593.9,2.60229161]
[1646912563227,0.0032822,2594.0,2593.9,3.60229161]
[1646912563428,0.80633935,2594.3,2594.0,30.92767]
[1646912563632,0.01312683,2594.4,2594.3,18.0]
[1646912563827,0.05190499,2594.8,2594.3,19.81675]
[1646912564028,0.05190499,2594.8,2594.3,20.81675]
[1646912564430,1.1521,2595.2,2594.4,11.87974264]
[1646912564431,1.20470659,2595.2,2594.4,11.87974264]
[1646912564631,0.05260659,2595.2,2594.5,12.353]
[1646912564828,0.05260659,2595.2,2594.5,13.61666]
[1646912565027,0.05260659,2595.2,2594.5,14.61666]
[1646912565529,8.80686812,2595.6,2594.7,2.00133364]
[1646912565530,0.99767305,2595.4,2594.7,2.00133364]
[1646912565730,0.04399262,2595.4,2594.9,1.92729]
[1646912565969,0.04399262,2595.4,2595.0,0.553]
[1646912566173,0.04399262,2595.4,2594.8,2.74060137]
[1646912566375,0.04399262,2595.4,2594.9,0.553]
[1646912566773,0.04399262,2595.4,2595.0,1.92726]
[1646912566976,0.04399262,2595.4,2595.0,2.48026]
[1646912567573,0.00328176,2595.3,2595.0,2.48026]
[1646912568175,0.00328176,2595.3,2595.1,0.07908412]
[1646912568374,0.00328176,2595.3,2595.2,1.51667]
[1646912568574,0.95368043,2595.7,2595.2,1.51667]
[1646912568777,0.0033584,2595.3,2595.2,1.51667]
[1646912569173,1.1123815,2595.3,2595.2,1.51667]
[1646912569377,1.8262927,2595.3,2595.2,1.51667]
[1646912569822,1.8229343,2595.3,2595.2,0.553]
[1646912570221,0.05427389,2595.2,2594.9,0.553]
[1646912570426,0.05427389,2595.2,2595.0,0.96383]
[1646912571228,0.05763233,2595.2,2595.0,0.96383]
[1646912572228,0.05427389,2595.2,2595.0,0.96383]
[1646912572427,0.05754415,2595.2,2595.0,0.96383]
[1646912573229,0.05754415,2595.2,2594.6,1.92777]
[1646912573230,0.3856,2595.1,2594.6,1.92777]
[1646912573469,0.3856,2595.1,2594.4,1.0]
[1646912573470,1.08044486,2594.8,2594.4,1.0]
[1646912573670,0.04368441,2594.7,2594.6,0.96399]
[1646912573867,0.04368441,2594.7,2594.4,0.3]
[1646912574070,0.04368441,2594.7,2594.2,1.4289]
[1646912574768,0.04806756,2594.6,2594.1,1.853]
[1646912574969,0.95531033,2594.4,2594.1,1.3]
[1646912575177,0.05133807,2594.6,2594.1,1.26399]
[1646912575371,0.05133807,2594.6,2594.4,1.92792]
[1646912575771,0.04806756,2594.6,2594.4,1.92792]
[1646912576172,0.05135095,2594.6,2594.4,1.92792]
[1646912576376,0.00328339,2594.6,2594.4,1.92792]
[1646912577624,0.55032619,2595.0,2594.4,1.92792]
[1646912577825,1.36219285,2595.1,2594.4,1.92792]
[1646912577826,0.05537338,2594.9,2594.4,1.92792]
[1646912579625,0.05537338,2594.9,2594.5,0.00328179]
[1646912579826,0.05537338,2594.9,2594.6,0.96393]
[1646912580629,0.05449586,2595.1,2594.6,0.96393]
[1646912580869,0.05777697,2595.1,2594.6,0.96721175]
[1646912581868,0.05449586,2595.1,2594.6,0.96393]
[1646912582272,0.05777706,2595.1,2594.7,0.00328178]
[1646912582471,0.05777706,2595.1,2594.8,0.96388]
[1646912583074,0.05449586,2595.1,2594.8,0.96388]
[1646912583374,0.05777602,2595.1,2594.8,0.96388]
[1646912583774,0.04847371,2594.9,2594.8,0.96388]
[1646912583975,0.81903335,2594.9,2594.8,0.96388]
[1646912584637,0.81903335,2594.9,2594.7,0.00328066]
[1646912584825,0.04974259,2594.8,2594.7,0.00328066]
[1646912585323,0.82037952,2594.8,2594.6,0.96397]
[1646912585524,0.77063693,2594.7,2594.6,0.96397]
[1646912585725,0.77063693,2594.7,2594.6,0.96725063]
[1646912586326,0.77063693,2594.7,2594.6,0.02706044]
[1646912586528,0.77063693,2594.7,2594.6,0.02377981]
[1646912590370,0.8058194,2594.7,2594.6,0.02377981]
[1646912590976,0.8058194,2594.7,2594.5,0.00328082]
[1646912591174,0.77063693,2594.6,2594.5,0.00328082]
[1646912591377,0.81559921,2594.6,2594.5,0.00328082]
[1646912591577,0.81559921,2594.6,2594.5,0.96395]
[1646912591776,0.81559921,2594.6,2594.5,0.96723084]
[1646912592141,4.70119921,2594.6,2594.5,0.00328084]
[1646912592727,1.20354739,2594.4,2593.9,0.3319]
[1646912592930,0.8142672,2594.3,2593.9,0.3319]
[1646912593129,3.8856,2594.6,2593.9,1.29614]
[1646912593130,0.82410595,2594.2,2593.9,1.29614]
[1646912593333,0.77063693,2594.1,2594.0,0.83219263]
[1646912593929,0.04756753,2594.5,2594.0,0.83219263]
[1646912594130,0.75376744,2594.4,2594.0,0.83219263]
[1646912594533,0.75376744,2594.4,2594.0,2.76040263]
[1646912594736,0.75376744,2594.4,2594.1,0.83219263]
[1646912594933,0.75376744,2594.4,2594.2,0.96406]
[1646912596574,0.75376744,2594.4,2594.2,0.96734096]
[1646912596974,0.75376744,2594.4,2594.2,1.52034096]
[1646912597378,0.75376744,2594.4,2594.2,1.51706]
[1646912597775,0.75376744,2594.4,2594.2,1.52034097]
[1646912598377,1.20938247,2594.7,2594.3,1.79650967]
[1646912598579,0.03518247,2594.7,2594.4,2.48068]
[1646912598778,0.7543219,2594.6,2594.4,2.48068]
[1646912599478,0.7543219,2594.7,2594.4,2.48068]
[1646912600121,0.7543219,2594.7,2594.4,2.48396089]
[1646912601125,0.7543219,2594.7,2594.5,0.83310553]
[1646912601325,0.7543219,2594.7,2594.6,0.96385]
[1646912603569,0.7543219,2594.7,2594.6,1.79706517]
[1646912603971,0.7543219,2595.0,2594.6,1.79706517]
[1646912604171,0.76360421,2595.1,2594.6,0.96385]
[1646912604172,0.7543219,2594.9,2594.6,0.96385]
[1646912604472,0.7543219,2594.8,2594.6,1.51685]
[1646912604677,0.77169469,2594.7,2594.6,1.51685]
[1646912604875,0.77169469,2594.7,2594.6,2.35599518]
[1646912605779,0.77169469,2594.7,2594.6,2.3527144]
[1646912606477,0.77169469,2594.7,2594.6,1.51685]
[1646912606879,0.77169469,2594.7,2594.6,2.35376796]
[1646912607132,0.77169469,2594.7,2594.6,2.35375647]
[1646912607330,0.77169469,2594.7,2594.6,1.51685]
[1646912607527,0.77169469,2594.7,2594.6,1.80114751]
[1646912607732,0.77169469,2594.7,2594.6,0.96385]
[1646912608128,0.77169469,2594.7,2594.6,1.80107205]
[1646912608326,0.77169469,2594.7,2594.6,0.96385]
[1646912608528,0.77169469,2594.7,2594.6,1.80108074]
[1646912608727,0.77169469,2594.7,2594.6,0.96385]
[1646912608930,0.77169469,2594.7,2594.6,0.8373753]
[1646912609133,0.77169469,2594.7,2594.2,1.92803]
[1646912609134,0.79324098,2594.3,2594.2,1.92803]
[1646912609330,0.79324098,2594.3,2594.2,2.76554445]
[1646912609331,1.54756288,2594.3,2594.2,2.76554445]
[1646912613972,1.54812452,2594.3,2594.2,2.76584113]
[1646912614173,1.5830936,2594.3,2594.2,2.76584113]
[1646912614642,1.63002888,2594.3,2594.2,2.76584113]
[1646912617139,2.34359283,2594.3,2594.2,2.76584113]
[1646912618243,1.63002888,2594.3,2594.2,2.76584113]
[1646912619676,1.64790872,2594.3,2594.2,2.76584113]
[1646912621984,5.14790872,2594.3,2594.2,0.83781113]
[1646912622227,5.14790872,2594.3,2594.1,0.00309189]
[1646912622428,5.14790872,2594.3,2593.8,0.82007119]
[1646912622429,1.47161636,2594.2,2593.8,0.82007119]
[1646912622827,0.75488354,2594.1,2593.8,0.82007119]
[1646912623030,0.75488354,2594.0,2593.8,0.82007119]
[1646912623229,0.75488354,2593.9,2593.8,0.82007119]
[1646912623828,0.75488354,2594.1,2593.7,0.82007119]
[1646912624230,0.75488354,2594.1,2593.7,0.82326981]
[1646912624630,0.75488354,2594.1,2593.8,0.96429]
[1646912624831,0.75488354,2594.1,2593.9,0.82007119]
[1646912625430,0.75488354,2594.1,2593.9,0.82326975]
[1646912626469,0.75488354,2594.1,2593.9,0.82007119]
[1646912626671,0.75488354,2594.1,2593.9,0.82303745]
[1646912627273,0.75488354,2594.2,2593.9,0.82303745]
[1646912627475,0.75488354,2594.1,2594.0,0.82007119]
[1646912627674,0.89302518,2594.3,2594.0,0.553]
[1646912627675,0.75488354,2594.2,2594.0,0.553]
[1646912627875,0.75488354,2594.2,2594.1,0.82007119]
[1646912628477,0.75488354,2594.2,2594.1,2.74810119]
[1646912628678,0.75488354,2594.2,2594.1,3.30110119]
[1646912629276,0.77117166,2594.2,2594.1,3.30110119]
[1646912629479,0.77120403,2594.2,2594.1,3.30110119]
[1646912629718,0.8460899,2594.3,2594.1,3.30110119]
[1646912629918,0.79324098,2594.3,2594.2,0.82007119]
[1646912630122,0.79324098,2594.3,2594.2,1.78398119]
[1646912630319,1.56444209,2594.3,2594.2,1.78398119]
[1646912630520,1.56445859,2594.3,2594.2,2.33698119]
[1646912630720,0.79324098,2594.3,2594.2,2.33698119]
[1646912630923,1.5644618,2594.3,2594.2,2.33698119]
[1646912631123,0.79324098,2594.3,2594.2,2.33698119]
[1646912631328,1.56447684,2594.3,2594.2,2.33698119]
[1646912631525,0.79324098,2594.3,2594.2,2.33698119]
[1646912631925,1.56448189,2594.3,2594.2,2.33698119]
[1646912632126,1.56448038,2594.3,2594.2,2.33698119]
[1646912632324,0.79324098,2594.3,2594.2,2.33473766]
[1646912634478,0.79324098,2594.3,2594.2,2.29508852]
[1646912634479,0.84625409,2594.3,2594.2,2.29508852]
[1646912634678,0.84625409,2594.3,2594.2,0.77817852]
[1646912637833,0.88947077,2594.3,2594.2,0.77817852]
[1646912640235,0.84625409,2594.3,2594.2,0.77817852]
[1646912641073,0.84513774,2594.3,2594.2,0.77817852]
[1646912642174,0.84513774,2594.3,2594.2,1.33117852]
[1646912652526,0.81089578,2594.3,2594.2,1.33117852]
[1646912652727,0.81089578,2594.3,2594.2,2.29510852]
[1646912654530,1.58324671,2594.3,2594.2,2.29510852]
[1646912654934,1.62157984,2594.3,2594.2,2.29510852]
[1646912655973,0.00140322,2594.6,2594.3,43.0]
[1646912656176,0.00140322,2594.6,2594.5,0.07165653]
[1646912656373,0.00140322,2594.6,2594.5,16.88838653]
[1646912656576,0.00140322,2594.6,2594.5,1.58838653]
[1646912656777,0.00140322,2594.6,2594.5,14.55558653]
[1646912656980,0.00304987,2595.0,2594.6,13.5]
[1646912657182,0.00304987,2595.0,2594.7,0.6276374]
[1646912657583,0.7184676,2595.4,2594.7,0.6276374]
[1646912657781,0.71673282,2595.4,2595.0,0.93732568]
[1646912657982,0.00299148,2595.0,2594.9,0.553]
[1646912658782,0.76391683,2595.5,2594.9,0.553]
[1646912658982,0.76391683,2595.5,2594.9,1.68261222]
[1646912659284,0.00299145,2595.1,2594.9,1.68261222]
[1646912659483,0.00299145,2595.1,2594.9,2.64639222]
[1646912659725,0.00299145,2595.1,2594.9,6.14639222]
[1646912659924,0.00299145,2595.1,2594.9,7.14639222]
[1646912660128,0.04262367,2595.4,2594.9,7.14639222]
[1646912660325,0.00299334,2595.1,2594.9,7.14639222]
[1646912660532,0.00299334,2595.1,2594.9,3.64639222]
[1646912660731,0.00299334,2595.1,2594.8,1.92755]
[1646912660929,0.38859334,2595.1,2594.5,1.1672]
[1646912661130,0.04911061,2594.8,2594.4,0.00299422]
[1646912661333,0.04911061,2594.8,2594.1,1.1849]
[1646912661531,0.05523174,2594.7,2594.4,0.00300273]
[1646912662534,0.05523174,2594.7,2594.4,1.92799]
[1646912662736,0.05523174,2594.7,2594.4,1.93099243]
[1646912663573,0.05523174,2594.7,2594.4,1.92799]
[1646912663775,0.05523174,2594.7,2594.1,3.11305]
[1646912663776,0.44083174,2594.7,2594.1,3.11305]
[1646912664074,0.05034356,2594.5,2594.4,0.00300201]
[1646912664274,3.93594356,2594.5,2594.4,0.00300201]
[1646912664877,0.96434,2594.3,2593.6,4.1405]
[1646912665077,2.13754777,2594.1,2593.6,4.1405]
[1646912665281,2.13754777,2594.1,2593.6,2.9689]
[1646912665482,2.13754777,2594.1,2593.7,1.92843]
[1646912666280,3.5450901,2594.0,2593.8,0.00300091]
[1646912666479,0.0450901,2594.0,2593.8,0.00300091]
[1646912667329,0.0450901,2594.0,2593.5,0.80451947]
[1646912667527,0.0450901,2594.0,2593.8,0.00300099]
[1646912668529,0.0450901,2594.0,2593.6,1.92855]
[1646912668729,0.0450901,2594.0,2593.8,0.00300121]
[1646912669732,0.0450901,2594.0,2593.6,1.92855]
[1646912669930,0.0450901,2594.0,2593.8,0.00300121]
[1646912670434,0.0595869,2594.0,2593.8,0.00300121]
[1646912670885,0.0595869,2594.0,2593.6,1.92855]
[1646912671075,0.0595869,2594.0,2593.8,0.00300121]
[1646912672175,0.0595869,2594.0,2593.6,1.92855]
[1646912672376,0.0595869,2594.0,2593.8,0.00300118]
[1646912673183,0.0595869,2594.0,2593.6,1.92855]
[1646912673581,0.0595869,2594.0,2593.8,0.00300118]
[1646912674382,0.0595869,2594.0,2593.6,1.92855]
[1646912674626,0.0595869,2594.0,2593.8,0.00300118]
[1646912675637,0.0595869,2594.0,2593.6,1.92855]
[1646912675833,0.0595869,2594.0,2593.8,0.00300118]
[1646912676436,0.77454824,2593.9,2593.8,0.00300118]
[1646912676835,0.77454824,2593.9,2593.7,0.81565938]
[1646912677041,3.93794859,2593.8,2593.7,0.81866058]
[1646912677237,4.71249683,2593.8,2593.7,0.81866058]
[1646912677636,4.71249683,2593.8,2593.7,0.0030012]
[1646912678039,4.71249683,2593.8,2593.5,0.80451947]
[1646912678040,5.89690807,2593.8,2593.5,0.80451947]
[1646912678242,0.43273617,2593.6,2593.5,0.80451947]
[1646912678478,0.43273617,2593.6,2593.5,1.57929855]
[1646912678479,1.20728441,2593.6,2593.5,1.57929855]
[1646912679075,0.82168441,2593.6,2593.5,1.57929855]
[1646912679675,0.81494967,2593.6,2593.5,1.57929855]
[1646912679878,0.0144968,2594.0,2593.5,1.57929855]
[1646912680077,0.81485363,2593.9,2593.6,1.86452734]
[1646912680283,0.81485363,2593.9,2593.7,0.96415]
[1646912680482,0.81485363,2593.9,2593.8,0.77477908]
[1646912680683,0.0144968,2594.0,2593.8,4.82777908]
[1646912680887,0.0144968,2594.0,2593.9,4.27477908]
[1646912681182,0.0144968,2594.0,2593.9,1.32777908]
[1646912681383,0.0144968,2594.0,2593.9,2.40882672]
[1646912681583,0.0144968,2594.0,2593.9,3.37276672]
[1646912682534,0.0144968,2594.0,2593.9,4.33672682]
[1646912682833,0.0144968,2594.0,2593.9,7.83672682]
[1646912683634,0.0144968,2594.0,2593.9,8.13672682]
[1646912686801,0.0144968,2594.0,2593.9,7.83672682]
[1646912687909,0.04855453,2594.8,2594.1,2.00066928]
[1646912688112,0.81479038,2594.7,2594.2,5.12777908]
[1646912688307,0.81479038,2594.6,2594.3,0.77477908]
[1646912688509,0.00340634,2594.8,2594.4,0.553]
[1646912688706,0.00340634,2594.8,2594.5,0.77477908]
[1646912688906,0.81477146,2594.9,2594.5,1.73860908]
[1646912689108,0.81817837,2594.8,2594.6,0.77477908]
[1646912689306,0.81477146,2594.7,2594.6,0.77477908]
[1646912690129,0.81477146,2594.7,2594.1,3.16983838]
[1646912690331,0.81477146,2594.7,2594.2,0.77328743]
[1646912691633,0.96417,2594.6,2594.2,0.77328743]
[1646912692237,0.81477146,2594.5,2594.3,0.96412]
[1646912692537,0.81477146,2594.5,2594.4,0.77328743]
[1646912692736,0.81477146,2594.5,2594.4,1.32628743]
[1646912692936,0.04895966,2594.8,2594.4,1.32628743]
[1646912693137,0.81466027,2594.7,2594.5,0.77328743]
[1646912693379,0.81466027,2594.6,2594.5,1.32628743]
[1646912693781,0.81466027,2594.7,2594.5,2.29012743]
[1646912693984,0.81466027,2594.6,2594.5,1.51684]
[1646912694184,0.81466027,2594.6,2594.5,2.28961878]
[1646912694482,0.0032821,2594.8,2594.5,2.28961878]
[1646912694681,0.0032821,2594.8,2594.6,0.77277878]
[1646912694983,0.81466027,2594.8,2594.4,1.92767]
[1646912695189,0.02760739,2594.6,2594.3,1.92806]
[1646912695385,0.81466027,2594.5,2594.4,0.77283262]
[1646912697235,0.81466027,2594.5,2594.4,1.32583262]
[1646912697437,0.81466027,2594.5,2594.4,2.28985262]
[1646912700239,0.02760739,2594.6,2594.5,0.793843]
[1646912700440,0.02760739,2594.6,2594.5,2.11967562]
[1646912700441,0.84214106,2594.6,2594.5,2.11967562]
[1646912700640,0.82820822,2594.6,2594.5,2.11967562]
[1646912703707,0.87734575,2594.6,2594.5,1.56667562]
[1646912704012,0.82820822,2594.6,2594.5,0.793843]
[1646912704206,1.12820822,2594.6,2594.5,0.793843]
[1646912704831,0.82820822,2594.6,2594.5,0.793843]
[1646912705030,1.12820822,2594.6,2594.5,0.793843]
[1646912709183,1.12820822,2594.6,2594.5,3.37664395]
[1646912709779,1.16885484,2594.6,2594.5,3.37664395]
[1646912710179,1.16885484,2594.6,2594.5,4.14963169]
[1646912710782,0.86885484,2594.6,2594.5,4.14963169]
[1646912711384,0.86885484,2594.6,2594.5,4.70263169]
[1646912713535,0.05432117,2594.6,2594.5,4.70263169]
[1646912713937,0.05432117,2594.6,2594.5,5.70263169]
[1646912714736,0.04067921,2594.6,2594.5,17.50263169]
[1646912714938,0.01195085,2595.1,2594.6,13.14917]
[1646912715138,0.81498317,2595.0,2594.7,13.51158774]
[1646912715336,0.01195085,2595.1,2594.9,1.02268463]
[1646912715535,0.00173478,2595.6,2595.0,1.32598774]
[1646912715735,0.81461469,2595.6,2595.1,0.77298774]
[1646912715980,0.81461469,2595.6,2595.3,0.9635]
[1646912716885,0.81763561,2595.6,2595.3,0.9635]
[1646912717886,0.81461469,2595.6,2595.3,0.9635]
[1646912718185,0.81763561,2595.6,2595.3,0.9635]
[1646912718486,0.81763561,2595.6,2595.3,1.5165]
[1646912719086,0.81461469,2595.6,2595.3,1.5165]
[1646912719390,0.81461469,2595.6,2595.3,1.51221028]
[1646912719391,0.81763561,2595.6,2595.3,1.51221028]
[1646912720232,0.81461469,2595.6,2595.2,3.75522546]
[1646912720433,0.81762564,2595.6,2595.3,0.553]
[1646912720833,0.81762564,2595.6,2595.4,1.29219555]
[1646912721033,0.81762564,2595.6,2595.5,0.96354]
[1646912721434,0.81461469,2595.6,2595.5,0.96354]
[1646912722037,0.81461469,2595.6,2595.5,1.51654]
[1646912726188,0.81461469,2595.6,2595.5,4.1009311]
[1646912726586,0.81461469,2595.6,2595.5,5.1009311]
[1646912727946,0.72879089,2596.1,2595.5,5.1009311]
[1646912728152,0.01205807,2596.1,2595.9,0.98874038]
[1646912728350,0.01205807,2596.1,2596.0,1.51623]
[1646912728749,3.27941794,2596.6,2596.0,1.51623]
[1646912728951,1.06551794,2596.6,2596.0,1.51623]
[1646912729349,0.76551794,2596.6,2596.0,1.51623]
[1646912729552,0.71673282,2596.7,2596.2,0.96315]
[1646912729857,0.71673282,2596.8,2596.3,0.553]
[1646912730050,0.75709088,2596.8,2596.3,0.553]
[1646912730249,0.71673282,2596.6,2596.3,0.553]
[1646912730449,0.71673282,2596.7,2596.3,0.9386]
[1646912730655,0.04035806,2596.8,2596.4,6.46514342]
[1646912730884,0.04035806,2596.8,2596.5,12.43818849]
[1646912731082,0.04035806,2596.8,2596.6,18.80067545]
[1646912731283,0.71673282,2597.3,2596.7,12.43657269]
[1646912731486,0.01408728,2597.1,2597.0,2.42391982]
[1646912731683,0.01408728,2597.1,2597.0,3.93965982]
[1646912732085,0.75575826,2597.6,2597.0,4.93965982]
[1646912732288,0.03902544,2597.6,2597.0,4.93965982]
[1646912732493,0.00352213,2597.2,2597.0,4.93965982]
[1646912732890,0.00352213,2597.2,2597.0,5.90235982]
[1646912733290,0.05311186,2597.6,2597.0,6.86505982]
[1646912733488,0.05311186,2597.6,2597.2,0.96268]
[1646912733489,0.03902544,2597.6,2597.2,0.96268]
[1646912733688,0.03902544,2597.6,2597.3,0.553]
[1646912734946,0.03902544,2597.6,2597.0,1.84519555]
[1646912735150,0.47786246,2597.6,2597.0,1.84519555]
[1646912735444,0.05236604,2597.5,2597.0,1.84519555]
[1646912736044,0.05053456,2597.3,2597.0,2.80829555]
[1646912736244,0.05053456,2597.3,2597.0,3.80829555]
[1646912736645,0.05053456,2597.3,2597.0,2.5161]
[1646912736845,0.05053456,2597.3,2597.2,2.5843911]
[1646912737249,0.05405657,2597.3,2597.2,3.5474211]
[1646912738249,0.05053456,2597.3,2597.2,2.5843911]
[1646912739284,0.05053456,2597.3,2597.2,3.5474211]
[1646912739682,0.05218076,2597.4,2597.2,3.5474211]
[1646912740187,0.00352203,2597.4,2597.2,3.5474211]
[1646912740384,0.00352203,2597.4,2597.2,1.84512869]
[1646912740784,0.05545482,2597.5,2597.2,1.84512869]
[1646912740983,0.00341635,2597.4,2597.2,1.84512869]
[1646912741789,0.05545482,2597.5,2597.2,1.84512869]
[1646912742158,0.05012973,2597.3,2597.2,0.96303]
[1646912742563,0.3856,2597.2,2596.9,0.00341706]
[1646912742766,0.43085178,2597.0,2596.9,0.00341706]
[1646912743162,0.43748952,2596.9,2596.4,1.0]
[1646912743361,0.05043838,2596.8,2596.1,7.8953]
[1646912743562,0.05043838,2596.8,2596.1,5.4255]
[1646912743764,0.00341627,2597.3,2596.1,5.4255]
[1646912743765,0.00341627,2597.3,2596.6,0.01244338]
[1646912743965,0.03902544,2597.6,2597.1,6.917]
[1646912744165,0.03902544,2597.6,2597.3,0.0840382]
[1646912744364,0.0112192,2598.0,2597.8,0.3856]
[1646912744564,0.0112192,2598.0,2597.9,16.32494615]
[1646912744765,0.0112192,2598.0,2597.9,15.69855064]
[1646912744966,0.02532952,2598.3,2598.1,1.04253541]
[1646912745164,0.02532952,2598.3,2598.2,0.63531019]
[1646912745367,0.01470328,2599.1,2598.2,0.63531019]
[1646912745665,0.01470328,2599.1,2598.3,0.07652416]
[1646912745888,0.01470328,2599.1,2598.4,1.51541]
[1646912746687,0.01470328,2599.1,2598.4,2.6004858]
[1646912746888,0.02464304,2599.0,2598.4,2.6004858]
[1646912747090,0.02464304,2599.0,2598.4,3.6004858]
[1646912747494,0.02464304,2599.0,2598.7,0.88209869]
[1646912747694,0.02464304,2599.0,2598.8,4.46228]
[1646912747899,0.02464304,2599.0,2598.9,4.053]
[1646912748096,0.02464304,2599.0,2598.9,0.553]
[1646912748294,0.02815984,2599.0,2598.9,0.553]
[1646912748494,0.01470328,2599.1,2598.9,0.553]
[1646912748698,0.01470328,2599.1,2599.0,0.08867605]
[1646912748994,0.01470328,2599.1,2599.0,0.64167605]
[1646912749195,0.01470328,2599.1,2599.0,1.60383605]
[1646912749838,0.01470328,2599.1,2599.0,1.51516]
[1646912750240,0.04187888,2599.4,2599.3,3.8298586]
[1646912750447,0.07128544,2599.4,2599.1,1.91005672]
[1646912750638,1.16860081,2599.3,2599.0,0.25]
[1646912750839,0.42756011,2599.3,2599.0,0.25]
[1646912751438,0.42756011,2599.3,2599.1,0.96242]
[1646912751842,0.42756011,2599.3,2599.0,0.25]
[1646912752241,0.42756011,2599.3,2599.0,1.21241]
[1646912752446,0.42756011,2599.3,2599.1,0.96241]
[1646912752642,0.42756011,2599.3,2599.2,0.88209869]
[1646912752845,0.45696667,2599.3,2599.2,0.88209869]
[1646912753149,0.46049743,2599.3,2599.2,0.88209869]
[1646912753391,2.09357612,2599.3,2599.2,0.88209869]
[1646912753588,0.07489743,2599.3,2599.2,0.88209869]
[1646912753787,0.03293732,2599.3,2599.2,0.88209869]
[1646912753988,0.46567528,2599.3,2599.2,0.88209869]
[1646912754291,0.46567528,2599.3,2599.2,2.80664869]
[1646912754688,0.41410656,2599.3,2599.2,2.80664869]
[1646912760449,0.41410656,2599.3,2599.2,1.10535623]
[1646912760901,0.41410656,2599.3,2599.1,0.96241]
[1646912760902,0.46836856,2599.3,2599.1,0.96241]
[1646912761083,0.04594909,2599.2,2599.1,0.96241]
[1646912761286,0.04594909,2599.2,2599.0,1.21241]
[1646912761488,0.43064909,2599.2,2599.0,2.17488]
[1646912762087,0.46005565,2599.2,2599.0,0.25]
[1646912762290,0.05341844,2599.1,2599.0,0.25]
[1646912763088,0.082825,2599.1,2599.0,0.25]
[1646912763493,0.082825,2599.1,2598.8,0.96253]
[1646912764489,0.3847,2599.0,2598.8,0.96253]
[1646912764941,0.05199049,2598.9,2598.8,0.96253]
[1646912765740,0.05199049,2598.9,2598.6,1.92501]
[1646912768245,0.3847,2598.8,2598.6,1.92501]
[1646912769810,0.40855502,2598.8,2598.6,1.92501]
[1646912771711,0.40855502,2598.8,2598.6,2.8874386]
[1646912773244,0.40855502,2598.8,2598.6,3.4404386]
[1646912774446,0.40855502,2598.8,2598.6,4.47940227]
[1646912774749,0.02395544,2598.7,2598.6,5.47940227]
[1646912775145,0.40865544,2598.7,2598.6,5.47940227]
[1646912775747,0.40865544,2598.7,2598.6,5.77940227]
[1646912776187,0.40865544,2598.7,2598.6,8.66606227]
[1646912777191,0.40865544,2598.7,2598.6,8.36606227]
[1646912777995,0.40865544,2598.7,2598.6,7.3270986]
[1646912778194,0.40865544,2598.7,2598.6,6.36467]
[1646912778795,1.09477593,2598.7,2598.6,6.36467]
[1646912779099,1.09477593,2598.7,2598.6,7.34266143]
[1646912779641,1.09477593,2598.7,2598.6,6.36467]
[1646912779845,0.40865544,2598.7,2598.6,6.36467]
[1646912780443,0.40865544,2598.7,2598.6,4.66311941]
[1646912781443,0.40865544,2598.7,2598.6,5.61444828]
[1646912782147,0.40865544,2598.7,2598.6,6.00004828]
[1646912782948,0.03270732,2599.1,2598.9,0.3856]
[1646912783146,0.03270732,2599.1,2599.0,0.9386]
[1646912783588,0.01320272,2599.2,2599.1,12.5]
[1646912783789,0.01320272,2599.2,2599.1,14.053]
[1646912784089,0.04187888,2599.4,2599.2,1.92397]
[1646912784292,0.04187888,2599.4,2599.3,0.553]
[1646912785892,0.04187888,2599.4,2599.3,0.63451528]
[1646912786493,0.04187888,2599.4,2599.3,3.52046528]
[1646912786796,0.69101451,2599.4,2599.3,8.02046528]
[1646912787743,0.69101451,2599.4,2599.3,4.52046528]
[1646912787942,0.69101451,2599.4,2599.3,8.32046528]
[1646912788143,0.69133119,2599.4,2599.3,4.82046528]
[1646912788343,0.04187888,2599.4,2599.3,4.82046528]
[1646912788743,0.04187888,2599.4,2599.3,5.74855528]
[1646912788944,0.6924709,2599.4,2599.3,5.74855528]
[1646912789144,0.6924709,2599.4,2599.3,9.24855528]
[1646912789447,0.6924709,2599.4,2599.3,8.32046528]
[1646912790346,0.73015335,2599.4,2599.3,4.82046528]
[1646912790744,0.73015335,2599.4,2599.3,8.32046528]
[1646912791199,0.73015335,2599.4,2599.3,4.73895]
[1646912791697,0.00341415,2599.5,2599.4,48.5]
[1646912791902,0.01429408,2600.0,2599.8,0.3856]
[1646912792103,0.01429408,2600.0,2599.9,4.053]
[1646912792503,0.02858816,2600.0,2599.9,1.553]
[1646912792703,0.02858816,2600.0,2599.9,0.553]
[1646912792906,0.02858816,2600.0,2599.9,1.55550758]
[1646912793104,0.0193196,2600.5,2600.0,0.9616317]
[1646912793304,0.0193196,2600.5,2600.2,0.96164]
[1646912793604,0.0193196,2600.5,2600.3,0.553]
[1646912793804,0.0193196,2600.5,2600.4,0.553]
[1646912795538,0.0193196,2600.5,2600.4,1.51463]
[1646912797542,0.0193196,2600.5,2600.4,0.553]
[1646912798399,1.19119003,2600.5,2600.4,0.553]
[1646912798590,1.19119003,2600.5,2599.8,1.92397]
[1646912798591,1.57679003,2600.5,2599.8,1.92397]
[1646912798790,1.57679003,2600.5,2599.7,1.92402]
[1646912798791,0.05353408,2600.4,2599.7,1.92402]
[1646912799798,0.43915284,2600.0,2599.6,0.00342513]
[1646912799995,0.05355284,2600.0,2599.6,0.00342513]
[1646912800195,0.43915284,2600.0,2599.6,0.00342513]
[1646912800398,0.04412582,2599.9,2599.6,0.00072571]
[1646912800799,0.04412582,2599.9,2599.3,0.25]
[1646912801200,0.04412582,2599.9,2599.3,1.21227]
[1646912801398,0.00170725,2600.3,2599.3,0.25]
[1646912801598,0.0459748,2600.3,2599.3,0.25]
[1646912801996,0.0459748,2600.3,2599.3,2.17428]
[1646912801997,0.3856,2600.2,2599.3,2.17428]
[1646912802251,0.0469555,2600.1,2599.3,2.17428]
[1646912802454,2.31902872,2600.3,2599.5,0.07424162]
[1646912802656,1.61192459,2600.3,2599.5,0.07424162]
[1646912803353,0.00353039,2600.0,2599.6,0.08622906]
[1646912803553,0.00353039,2600.0,2599.6,1.04838906]
[1646912803753,0.00353039,2600.0,2599.7,0.07127956]
[1646912804353,1.61192459,2600.3,2599.7,0.07127956]
[1646912804555,0.00353041,2600.0,2599.7,0.07127956]
[1646912805154,0.01548831,2599.8,2599.5,2.0814851]
[1646912805358,0.01548831,2599.8,2599.5,0.0035311]
[1646912805555,0.01548831,2599.8,2599.3,0.25]
[1646912806005,0.01548831,2599.8,2599.5,0.00353093]
[1646912806607,0.40108831,2599.8,2599.5,0.00353093]
[1646912806808,0.40108831,2599.8,2599.3,0.08443121]